[Event "FIDE Womens World Cup 2021"]
[Site "Sochi"]
[Date "2021.07.13"]
[Round "1.2"]
[White "Sukandar, Irine Kharisma"]
[Black "Gomez Barrera, Javiera Belen"]
[Result "1/2-1/2"]
[ECO "C54"]
[WhiteElo "2413"]
[BlackElo "2083"]
[Annotator "NA"]
[PlyCount "129"]
[EventDate "2021.07.12"]
[EventType "k.o."]
[EventCountry "RUS"]
[SourceTitle "playchess.com"]
[Source "ChessBase"]
[SourceQuality "1"]
[TimeControl "40/5400+30:1800+30"]

1. e4 {[%emt 0:00:29]} e5 {[%emt 0:00:09]} 2. Nf3 {[%emt 0:00:18]} Nc6 {[%emt 0:00:07]} 3. Bc4 {[%emt 0:00:20]} Bc5 {[%emt 0:00:17]} 4. c3 {[%emt 0:00:22]} Nf6 {[%emt 0:00:09]} 5. d3 {[%emt 0:00:35]} d6 {[%emt 0:00:16]} 6. O-O {[%emt 0:00:40]} O-O {[%emt 0:00:34]} 7. Re1 {[%emt 0:01:16]} a5 {[%emt 0:00:28]} 8. h3 {[%emt 0:01:22]} Ba7 {[%emt 0:01:16]} 9. Nbd2 {[%emt 0:02:51]} Ne7 {[%emt 0:00:41]} 10. Nf1 {[%emt 0:00:35]} Ng6 {[%emt 0:00:18]} 11. Ng3 {[%emt 0:00:20]} c6 {[%emt 0:00:18]} 12. Bb3 {[%emt 0:07:01]} d5 {[%emt 0:03:54]} 13. Bg5 {[%emt 0:14:39]} h6 {[%emt 0:03:24]} 14. Bxf6 {[%emt 0:00:46]} Qxf6 {[%emt 0:00:06]} 15. exd5 {[%emt 0:03:09]} Nh4 {[%emt 0:03:23]} 16. Re4 {[%emt 0:08:14]} Nxf3+ {[%emt 0:03:15]} 17. Qxf3 {[%emt 0:00:16]} Qxf3 {[%emt 0:00:24]} 18. gxf3 {[%emt 0:00:02]} a4 {[%emt 0:01:40]} 19. Rxa4 {[%emt 0:05:43]} cxd5 {[%emt 0:01:45]} 20. Kg2 {[%emt 0:00:16]} Rd8 {[%emt 0:14:37]} 21. Re1 {[%emt 0:05:07]} f6 {[%emt 0:01:35]} 22. Ra5 {[%emt 0:03:48]} Be6 {[%emt 0:19:41]} 23. d4 {[%emt 0:04:12]} Bf7 {[%emt 0:08:26]} 24. dxe5 {[%emt 0:01:40]} fxe5 {[%emt 0:00:26]} 25. Rxe5 {[%emt 0:00:47]} d4 {[%emt 0:00:10]} 26. Bxf7+ {[%emt 0:03:37]} Kxf7 {[%emt 0:01:51]} 27. cxd4 {[%emt 0:00:12]} Bxd4 {[%emt 0:00:06]} 28. Rf5+ {[%emt 0:00:59]} Kg6 {[%emt 0:07:34]} 29. b3 {[%emt 0:00:45]} Bc3 {[%emt 0:10:55]} 30. Rxa8 {[%emt 0:00:35]} Rxa8 {[%emt 0:00:02]} 31. Rb5 {[%emt 0:00:38]} Rxa2 {[%emt 0:01:06]} 32. Rb6+ {[%emt 0:00:31]} Bf6 {[%emt 0:00:31]} 33. Ne4 {[%emt 0:01:09]} Kf5 {[%emt 0:03:19]} 34. Nxf6 {[%emt 0:00:42]} gxf6 {[%emt 0:00:05]} 35. Rxb7 {[%emt 0:00:07]} Ra1 {[%emt 0:02:09]} 36. Rb5+ {[%emt 0:00:23]} Kf4 {[%emt 0:01:01]} 37. Rb4+ {[%emt 0:01:53]} Kf5 {[%emt 0:00:06]} 38. f4 {[%emt 0:01:09]} Rd1 {[%emt 0:02:05]} 39. Kg3 {[%emt 0:01:06]} h5 {[%emt 0:01:18]} 40. Rb5+ {[%emt 0:00:28]} Ke4 {[%emt 0:00:12]} 41. Kg2 {[%emt 0:44:02]} Rd3 {[%emt 0:35:11]} 42. b4 {[%emt 0:03:08]} f5 {[%emt 0:02:20]} 43. Rb8 {[%emt 0:03:29]} Rb3 {[%emt 0:02:27]} 44. Rh8 {[%emt 0:02:20]} Rxb4 {[%emt 0:00:25]} 45. Rxh5 {[%emt 0:00:16]} Rb3 {[%emt 0:00:28]} 46. Rg5 {[%emt 0:06:59]} Kxf4 {[%emt 0:00:00]} 47. Rg3 {[%emt 0:00:00]} Rb6 {[%emt 0:00:00]} 48. Rf3+ {[%emt 0:00:00]} Kg5 {[%emt 0:00:00]} 49. Kg3 {[%emt 0:00:00]} Rh6 {[%emt 0:00:00]} 50. Rb3 {[%emt 0:00:00]} f4+ {[%emt 0:00:00]} 51. Kg2 {[%emt 0:00:00]} Kf5 {[%emt 0:00:00]} 52. Rb8 {[%emt 0:00:00]} Rh7 {[%emt 0:00:00]} 53. Rb5+ {[%emt 0:00:00]} Ke4 {[%emt 0:00:00]} 54. f3+ {[%emt 0:00:00]} Ke3 {[%emt 0:00:00]} 55. Re5+ {[%emt 0:00:00]} Kd3 {[%emt 0:00:00]} 56. Re4 {[%emt 0:00:00]} Rh4 {[%emt 0:00:00]} 57. Kf2 {[%emt 0:00:00]} Kd2 {[%emt 0:00:00]} 58. Rd4+ {[%emt 0:00:00]} Kc3 {[%emt 0:00:00]} 59. Ra4 {[%emt 0:00:00]} Kd3 {[%emt 0:00:00]} 60. Kg2 {[%emt 0:00:00]} Ke3 {[%emt 0:00:00]} 61. Re4+ {[%emt 0:00:00]} Kd3 {[%emt 0:00:00]} 62. Re5 {[%emt 0:00:00]} Kd4 {[%emt 0:00:00]} 63. Rg5 {[%emt 0:00:00]} Ke3 {[%emt 0:00:00]} 64. Re5+ {[%emt 0:00:00]} Kd4 {[%emt 0:00:00]} 65. Rg5 {[%emt 0:00:00]} 1/2-1/2

[Event "FIDE Womens World Cup 2021"]
[Site "Sochi"]
[Date "2021.07.13"]
[Round "1.2"]
[White "Danielian, Elina"]
[Black "Vargas, Gabriela"]
[Result "1-0"]
[ECO "A07"]
[WhiteElo "2407"]
[BlackElo "2170"]
[Annotator "NA"]
[PlyCount "112"]
[EventDate "2021.07.12"]
[EventType "k.o."]
[EventCountry "RUS"]
[SourceTitle "playchess.com"]
[Source "ChessBase"]
[SourceQuality "1"]
[TimeControl "40/5400+30:1800+30"]

1. Nf3 {[%emt 0:00:06]} d5 {[%emt 0:00:15]} 2. g3 {[%emt 0:00:27]} c6 {[%emt 0:00:46]} 3. Bg2 {[%emt 0:00:11]} Nf6 {[%emt 0:00:33]} 4. O-O {[%emt 0:00:41]} Bg4 {[%emt 0:00:46]} 5. c4 {[%emt 0:00:27]} e6 {[%emt 0:00:13]} 6. cxd5 {[%emt 0:00:27]} exd5 {[%emt 0:00:43]} 7. Qb3 {[%emt 0:01:12]} Qb6 {[%emt 0:01:58]} 8. Qc2 {[%emt 0:00:09]} Nbd7 {[%emt 0:05:51]} 9. d3 {[%emt 0:01:08]} Be7 {[%emt 0:07:29]} 10. Nc3 {[%emt 0:00:26]} O-O {[%emt 0:01:48]} 11. e4 {[%emt 0:01:16]} Bxf3 {[%emt 0:06:34]} 12. Bxf3 {[%emt 0:00:06]} d4 {[%emt 0:00:10]} 13. Ne2 {[%emt 0:01:45]} Ne5 {[%emt 0:05:52]} 14. Bg2 {[%emt 0:00:15]} Qa6 {[%emt 0:00:21]} 15. Nxd4 {[%emt 0:19:26]} Qxd3 {[%emt 0:01:11]} 16. Qxd3 {[%emt 0:01:10]} Nxd3 {[%emt 0:00:04]} 17. Rd1 {[%emt 0:00:47]} Nxc1 {[%emt 0:05:45]} 18. Raxc1 {[%emt 0:00:03]} Rfd8 {[%emt 0:00:45]} 19. h3 {[%emt 0:05:21]} g6 {[%emt 0:01:45]} 20. Kf1 {[%emt 0:07:09]} Nh5 {[%emt 0:08:05]} 21. e5 {[%emt 0:19:11]} Ng7 {[%emt 0:06:37]} 22. h4 {[%emt 0:05:55]} f6 {[%emt 0:05:06]} 23. Nf3 {[%emt 0:00:50]} Rxd1+ {[%emt 0:08:50]} 24. Rxd1 {[%emt 0:00:04]} Rd8 {[%emt 0:00:16]} 25. Rxd8+ {[%emt 0:00:27]} Bxd8 {[%emt 0:00:02]} 26. b3 {[%emt 0:05:35]} fxe5 {[%emt 0:04:58]} 27. Nxe5 {[%emt 0:00:04]} Ne6 {[%emt 0:00:33]} 28. Ke2 {[%emt 0:00:23]} Bc7 {[%emt 0:01:20]} 29. Nf3 {[%emt 0:02:32]} Nc5 {[%emt 0:02:51]} 30. Nd4 {[%emt 0:01:48]} Be5 {[%emt 0:02:06]} 31. Nc2 {[%emt 0:02:29]} a5 {[%emt 0:03:34]} 32. Ke3 {[%emt 0:06:27]} Bc3 {[%emt 0:04:18]} 33. Bf1 {[%emt 0:02:32]} Kg7 {[%emt 0:00:57]} 34. Be2 {[%emt 0:06:47]} Kf6 {[%emt 0:02:51]} 35. g4 {[%emt 0:01:19]} h6 {[%emt 0:04:13]} 36. f4 {[%emt 0:00:31]} Bb2 {[%emt 0:00:28]} 37. g5+ {[%emt 0:03:29]} hxg5 {[%emt 0:01:11]} 38. hxg5+ {[%emt 0:00:04]} Ke7 {[%emt 0:00:33]} 39. Kf3 {[%emt 0:04:34]} Ne6 {[%emt 0:03:39]} 40. Bd3 {[%emt 0:01:23]} Bc1 {[%emt 0:03:48]} 41. Ne3 {[%emt 0:31:10]} Kf7 {[%emt 0:31:13]} 42. Ng2 {[%emt 0:00:00]} Bd2 {[%emt 0:00:00]} 43. Bc4 {[%emt 0:00:00]} b5 {[%emt 0:00:00]} 44. Bxe6+ {[%emt 0:00:00]} Kxe6 {[%emt 0:00:00]} 45. Nh4 {[%emt 0:00:00]} Kf7 {[%emt 0:00:00]} 46. Ke4 {[%emt 0:00:00]} Be1 {[%emt 0:00:00]} 47. Nf3 {[%emt 0:00:00]} Bc3 {[%emt 0:00:00]} 48. Ne5+ {[%emt 0:00:00]} Bxe5 {[%emt 0:00:00]} 49. Kxe5 {[%emt 0:00:00]} Ke7 {[%emt 0:00:00]} 50. f5 {[%emt 0:00:00]} gxf5 {[%emt 0:00:00]} 51. Kxf5 {[%emt 0:00:00]} c5 {[%emt 0:00:00]} 52. Ke5 {[%emt 0:00:00]} c4 {[%emt 0:00:00]} 53. bxc4 {[%emt 0:00:00]} b4 {[%emt 0:00:00]} 54. Kd4 {[%emt 0:00:00]} a4 {[%emt 0:00:00]} 55. c5 {[%emt 0:00:00]} b3 {[%emt 0:00:00]} 56. axb3 {[%emt 0:00:00]} a3 {[%emt 0:00:00]} 1-0

[Event "FIDE Womens World Cup 2021"]
[Site "Sochi"]
[Date "2021.07.13"]
[Round "1.2"]
[White "Unuk, Laura"]
[Black "Wafa, Shrook"]
[Result "1-0"]
[ECO "E10"]
[WhiteElo "2407"]
[BlackElo "2182"]
[Annotator "NA"]
[PlyCount "65"]
[EventDate "2021.07.12"]
[EventType "k.o."]
[EventCountry "RUS"]
[SourceTitle "playchess.com"]
[Source "ChessBase"]
[SourceQuality "1"]
[TimeControl "40/5400+30:1800+30"]

1. d4 {[%emt 0:00:07]} Nf6 {[%emt 0:00:12]} 2. c4 {[%emt 0:00:38]} e6 {[%emt 0:00:11]} 3. Nf3 {[%emt 0:00:24]} c5 {[%emt 0:00:15]} 4. d5 {[%emt 0:08:06]} b5 {[%emt 0:00:15]} 5. e4 {[%emt 0:21:04]} Nxe4 {[%emt 0:01:19]} 6. Bd3 {[%emt 0:00:19]} Nf6 {[%emt 0:02:04]} 7. O-O {[%emt 0:04:00]} bxc4 {[%emt 0:07:28]} 8. Bxc4 {[%emt 0:00:30]} Ba6 {[%emt 0:01:23]} 9. Bxa6 {[%emt 0:12:08]} Nxa6 {[%emt 0:00:09]} 10. Nc3 {[%emt 0:03:12]} Nb4 {[%emt 0:08:09]} 11. Re1 {[%emt 0:00:54]} Be7 {[%emt 0:06:17]} 12. d6 {[%emt 0:04:27]} Bf8 {[%emt 0:00:23]} 13. a3 {[%emt 0:00:09]} Nc6 {[%emt 0:05:36]} 14. Nb5 {[%emt 0:01:20]} Rc8 {[%emt 0:00:10]} 15. Bf4 {[%emt 0:03:58]} h6 {[%emt 0:01:33]} 16. Nc7+ {[%emt 0:01:15]} Rxc7 {[%emt 0:00:07]} 17. dxc7 {[%emt 0:00:06]} Qc8 {[%emt 0:00:06]} 18. Bd6 {[%emt 0:00:58]} Be7 {[%emt 0:02:10]} 19. Rc1 {[%emt 0:01:07]} O-O {[%emt 0:01:42]} 20. Bxe7 {[%emt 0:03:50]} Nxe7 {[%emt 0:00:09]} 21. Qd6 {[%emt 0:00:22]} Nc6 {[%emt 0:01:44]} 22. Red1 {[%emt 0:01:19]} Na5 {[%emt 0:01:11]} 23. Qxc5 {[%emt 0:05:43]} Nb3 {[%emt 0:02:19]} 24. Qxa7 {[%emt 0:00:07]} Nxc1 {[%emt 0:00:08]} 25. Rxc1 {[%emt 0:00:04]} d5 {[%emt 0:00:13]} 26. b4 {[%emt 0:01:21]} e5 {[%emt 0:00:17]} 27. Nxe5 {[%emt 0:03:42]} Re8 {[%emt 0:00:19]} 28. Nc6 {[%emt 0:01:35]} Kh7 {[%emt 0:00:50]} 29. h3 {[%emt 0:00:59]} Ne4 {[%emt 0:00:29]} 30. Qb6 {[%emt 0:03:31]} Qe6 {[%emt 0:04:03]} 31. Qd4 {[%emt 0:01:01]} Nd6 {[%emt 0:01:32]} 32. b5 {[%emt 0:01:58]} Nc4 {[%emt 0:02:01]} 33. Na7 {[%emt 0:01:47]} 1-0

[Event "FIDE Womens World Cup 2021"]
[Site "Sochi"]
[Date "2021.07.13"]
[Round "1.2"]
[White "Socko, Monika"]
[Black "Castrillon Gomez, Melissa"]
[Result "1-0"]
[ECO "C54"]
[WhiteElo "2393"]
[BlackElo "2201"]
[Annotator "NA"]
[PlyCount "75"]
[EventDate "2021.07.12"]
[EventType "k.o."]
[EventCountry "RUS"]
[SourceTitle "playchess.com"]
[Source "ChessBase"]
[SourceQuality "1"]
[TimeControl "40/5400+30:1800+30"]

1. e4 {[%emt 0:00:05]} e5 {[%emt 0:00:07]} 2. Nf3 {[%emt 0:00:05]} Nc6 {[%emt 0:00:05]} 3. Bc4 {[%emt 0:00:07]} Bc5 {[%emt 0:00:13]} 4. c3 {[%emt 0:00:20]} Nf6 {[%emt 0:00:13]} 5. d3 {[%emt 0:00:05]} a6 {[%emt 0:00:49]} 6. a4 {[%emt 0:04:26]} d6 {[%emt 0:01:42]} 7. O-O {[%emt 0:02:08]} Ba7 {[%emt 0:01:39]} 8. Re1 {[%emt 0:03:55]} h6 {[%emt 0:04:32]} 9. Nbd2 {[%emt 0:04:00]} O-O {[%emt 0:01:48]} 10. Nf1 {[%emt 0:01:22]} Nh5 {[%emt 0:01:34]} 11. d4 {[%emt 0:09:01]} Qf6 {[%emt 0:02:44]} 12. Be3 {[%emt 0:10:38]} Nf4 {[%emt 0:10:04]} 13. Bxf4 {[%emt 0:05:37]} Qxf4 {[%emt 0:05:23]} 14. Ne3 {[%emt 0:04:43]} Ne7 {[%emt 0:07:24]} 15. Qd3 {[%emt 0:11:28]} c6 {[%emt 0:11:08]} 16. dxe5 {[%emt 0:03:07]} dxe5 {[%emt 0:02:46]} 17. Qd6 {[%emt 0:01:40]} Bxe3 {[%emt 0:13:12]} 18. Rxe3 {[%emt 0:02:10]} Nf5 {[%emt 0:04:29]} 19. exf5 {[%emt 0:03:19]} Qxc4 {[%emt 0:00:01]} 20. Nxe5 {[%emt 0:03:29]} Qh4 {[%emt 0:02:12]} 21. Nf3 {[%emt 0:03:23]} Qg4 {[%emt 0:08:12]} 22. f6 {[%emt 0:03:47]} Bf5 {[%emt 0:08:00]} 23. h3 {[%emt 0:04:15]} Qg6 {[%emt 0:02:41]} 24. Nh4 {[%emt 0:01:36]} Qg5 {[%emt 0:01:11]} 25. Nxf5 {[%emt 0:01:00]} Qxf5 {[%emt 0:00:04]} 26. fxg7 {[%emt 0:00:05]} Kxg7 {[%emt 0:00:11]} 27. Rae1 {[%emt 0:00:52]} Rad8 {[%emt 0:00:52]} 28. Qb4 {[%emt 0:01:25]} b5 {[%emt 0:02:46]} 29. Rf3 {[%emt 0:00:38]} Qc2 {[%emt 0:01:36]} 30. Qg4+ {[%emt 0:04:42]} Qg6 {[%emt 0:02:54]} 31. Qf4 {[%emt 0:00:04]} Rd5 {[%emt 0:01:51]} 32. Re5 {[%emt 0:02:03]} Rxe5 {[%emt 0:01:13]} 33. Qxe5+ {[%emt 0:00:02]} Kh7 {[%emt 0:00:05]} 34. Rf6 {[%emt 0:03:00]} Qg7 {[%emt 0:03:14]} 35. Qe4+ {[%emt 0:00:35]} Kh8 {[%emt 0:00:03]} 36. Qxc6 {[%emt 0:00:18]} Kh7 {[%emt 0:00:03]} 37. Qe4+ {[%emt 0:01:07]} Kh8 {[%emt 0:00:04]} 38. Qf4 {[%emt 0:00:43]} 1-0

[Event "FIDE Womens World Cup 2021"]
[Site "Sochi"]
[Date "2021.07.13"]
[Round "1.2"]
[White "Garifullina, Leya"]
[Black "Corrales Jimenez, Zenia"]
[Result "1-0"]
[ECO "B31"]
[WhiteElo "2390"]
[BlackElo "2191"]
[Annotator "NA"]
[PlyCount "77"]
[EventDate "2021.07.12"]
[EventType "k.o."]
[EventCountry "RUS"]
[SourceTitle "playchess.com"]
[Source "ChessBase"]
[SourceQuality "1"]
[TimeControl "40/5400+30:1800+30"]

1. e4 {[%emt 0:00:09]} c5 {[%emt 0:00:15]} 2. Nf3 {[%emt 0:00:07]} Nc6 {[%emt 0:00:36]} 3. Bb5 {[%emt 0:00:23]} g6 {[%emt 0:00:29]} 4. Bxc6 {[%emt 0:00:21]} dxc6 {[%emt 0:00:07]} 5. d3 {[%emt 0:00:08]} Bg7 {[%emt 0:00:23]} 6. h3 {[%emt 0:00:09]} Nf6 {[%emt 0:00:26]} 7. Nc3 {[%emt 0:00:14]} Nd7 {[%emt 0:01:01]} 8. Be3 {[%emt 0:00:22]} e5 {[%emt 0:00:18]} 9. Qd2 {[%emt 0:00:10]} h6 {[%emt 0:00:43]} 10. O-O {[%emt 0:00:13]} b6 {[%emt 0:00:19]} 11. Nh2 {[%emt 0:00:15]} Nf8 {[%emt 0:00:40]} 12. f4 {[%emt 0:00:07]} exf4 {[%emt 0:00:05]} 13. Bxf4 {[%emt 0:00:15]} Ne6 {[%emt 0:00:26]} 14. Bg3 {[%emt 0:00:08]} Nd4 {[%emt 0:10:53]} 15. Rae1 {[%emt 0:13:08]} Qe7 {[%emt 0:07:42]} 16. Nd5 {[%emt 0:10:02]} cxd5 {[%emt 0:00:39]} 17. exd5 {[%emt 0:00:04]} Ne6 {[%emt 0:04:43]} 18. Ng4 {[%emt 0:04:47]} Qg5 {[%emt 0:11:45]} 19. Qxg5 {[%emt 0:07:23]} hxg5 {[%emt 0:00:09]} 20. Be5 {[%emt 0:01:28]} Bxe5 {[%emt 0:07:33]} 21. Nxe5 {[%emt 0:07:02]} Rh7 {[%emt 0:13:39]} 22. dxe6 {[%emt 0:00:46]} Bxe6 {[%emt 0:01:30]} 23. Nxf7 {[%emt 0:00:51]} Rxf7 {[%emt 0:02:07]} 24. Rxe6+ {[%emt 0:00:08]} Re7 {[%emt 0:00:05]} 25. Rxg6 {[%emt 0:00:26]} Kd7 {[%emt 0:00:35]} 26. Rxg5 {[%emt 0:00:11]} Kc6 {[%emt 0:01:26]} 27. h4 {[%emt 0:01:14]} Kb5 {[%emt 0:00:22]} 28. h5 {[%emt 0:00:16]} Rh8 {[%emt 0:00:36]} 29. g4 {[%emt 0:00:36]} Re2 {[%emt 0:01:02]} 30. Rf2 {[%emt 0:00:05]} Re1+ {[%emt 0:00:04]} 31. Kg2 {[%emt 0:00:04]} a5 {[%emt 0:00:51]} 32. Rg6 {[%emt 0:00:13]} a4 {[%emt 0:00:50]} 33. a3 {[%emt 0:00:21]} Ka5 {[%emt 0:00:19]} 34. h6 {[%emt 0:00:20]} Rb1 {[%emt 0:00:31]} 35. c4 {[%emt 0:00:53]} b5 {[%emt 0:01:19]} 36. g5 {[%emt 0:01:44]} bxc4 {[%emt 0:00:18]} 37. dxc4 {[%emt 0:00:05]} Rb8 {[%emt 0:06:10]} 38. Rgf6 {[%emt 0:01:41]} Rg8 {[%emt 0:07:53]} 39. R6f5 {[%emt 0:00:17]} 1-0

[Event "FIDE Womens World Cup 2021"]
[Site "Sochi"]
[Date "2021.07.13"]
[Round "1.2"]
[White "Assaubayeva, Bibisara"]
[Black "Miranda Llanes, Yerisbel"]
[Result "1/2-1/2"]
[ECO "D38"]
[WhiteElo "2389"]
[BlackElo "2262"]
[Annotator "NA"]
[PlyCount "84"]
[EventDate "2021.07.12"]
[EventType "k.o."]
[EventCountry "RUS"]
[SourceTitle "playchess.com"]
[Source "ChessBase"]
[SourceQuality "1"]
[TimeControl "40/5400+30:1800+30"]

1. d4 {[%emt 0:00:06]} Nf6 {[%emt 0:00:05]} 2. c4 {[%emt 0:00:05]} e6 {[%emt 0:00:09]} 3. Nf3 {[%emt 0:00:05]} d5 {[%emt 0:00:08]} 4. Nc3 {[%emt 0:00:06]} Bb4 {[%emt 0:00:10]} 5. Qb3 {[%emt 0:00:21]} c5 {[%emt 0:01:44]} 6. dxc5 {[%emt 0:00:07]} Nc6 {[%emt 0:00:48]} 7. Bg5 {[%emt 0:00:21]} h6 {[%emt 0:04:59]} 8. Bxf6 {[%emt 0:00:22]} Qxf6 {[%emt 0:00:02]} 9. e3 {[%emt 0:00:11]} O-O {[%emt 0:08:24]} 10. cxd5 {[%emt 0:00:12]} exd5 {[%emt 0:00:30]} 11. Bb5 {[%emt 0:00:05]} Bxc3+ {[%emt 0:12:32]} 12. Qxc3 {[%emt 0:02:15]} Qxc3+ {[%emt 0:00:37]} 13. bxc3 {[%emt 0:00:01]} Na5 {[%emt 0:02:43]} 14. Nd4 {[%emt 0:02:57]} a6 {[%emt 0:02:53]} 15. Ba4 {[%emt 0:01:48]} Be6 {[%emt 0:03:51]} 16. Rb1 {[%emt 0:04:59]} Rfc8 {[%emt 0:01:39]} 17. Nxe6 {[%emt 0:06:01]} fxe6 {[%emt 0:00:03]} 18. Bd7 {[%emt 0:00:08]} Rxc5 {[%emt 0:00:04]} 19. Bxe6+ {[%emt 0:00:11]} Kf8 {[%emt 0:00:16]} 20. Rd1 {[%emt 0:01:59]} Rxc3 {[%emt 0:05:35]} 21. Bxd5 {[%emt 0:02:34]} Rac8 {[%emt 0:01:36]} 22. O-O {[%emt 0:02:18]} Ke7 {[%emt 0:01:27]} 23. Rd4 {[%emt 0:02:06]} Rc1 {[%emt 0:01:10]} 24. g3 {[%emt 0:01:27]} b5 {[%emt 0:01:32]} 25. a4 {[%emt 0:02:33]} Rxf1+ {[%emt 0:07:15]} 26. Kxf1 {[%emt 0:00:01]} Rc1+ {[%emt 0:00:06]} 27. Ke2 {[%emt 0:02:07]} Kd6 {[%emt 0:00:12]} 28. axb5 {[%emt 0:00:35]} axb5 {[%emt 0:00:09]} 29. Kd2 {[%emt 0:04:55]} Ra1 {[%emt 0:01:13]} 30. Kc3 {[%emt 0:03:29]} Kc5 {[%emt 0:01:23]} 31. Be6 {[%emt 0:03:47]} Rc1+ {[%emt 0:03:17]} 32. Kb2 {[%emt 0:01:47]} Rf1 {[%emt 0:00:29]} 33. Rd2 {[%emt 0:08:35]} Kb4 {[%emt 0:01:08]} 34. Re2 {[%emt 0:09:33]} Nc4+ {[%emt 0:06:10]} 35. Bxc4 {[%emt 0:01:05]} bxc4 {[%emt 0:00:03]} 36. e4 {[%emt 0:00:23]} c3+ {[%emt 0:00:40]} 37. Kc2 {[%emt 0:00:12]} Ra1 {[%emt 0:01:48]} 38. e5 {[%emt 0:00:21]} Ra2+ {[%emt 0:00:09]} 39. Kd3 {[%emt 0:00:47]} Ra7 {[%emt 0:05:19]} 40. Kc2 {[%emt 0:01:32]} Ra2+ {[%emt 0:00:18]} 41. Kd3 {[%emt 0:30:05]} Ra7 {[%emt 0:30:09]} 42. Kc2 {[%emt 0:00:05]} Ra2+ {[%emt 0:00:04]} 1/2-1/2

[Event "FIDE Womens World Cup 2021"]
[Site "Sochi"]
[Date "2021.07.13"]
[Round "1.2"]
[White "Tsolakidou, Stavroula"]
[Black "Ryjanova, Julia"]
[Result "1-0"]
[ECO "A62"]
[WhiteElo "2389"]
[BlackElo "2299"]
[Annotator "NA"]
[PlyCount "105"]
[EventDate "2021.07.12"]
[EventType "k.o."]
[EventCountry "RUS"]
[SourceTitle "playchess.com"]
[Source "ChessBase"]
[SourceQuality "1"]
[TimeControl "40/5400+30:1800+30"]

1. d4 {[%emt 0:00:03]} Nf6 {[%emt 0:00:07]} 2. c4 {[%emt 0:00:07]} e6 {[%emt 0:00:26]} 3. g3 {[%emt 0:00:07]} c5 {[%emt 0:00:42]} 4. d5 {[%emt 0:00:41]} exd5 {[%emt 0:00:38]} 5. cxd5 {[%emt 0:00:07]} d6 {[%emt 0:00:12]} 6. Nc3 {[%emt 0:00:07]} g6 {[%emt 0:00:31]} 7. Bg2 {[%emt 0:00:08]} Bg7 {[%emt 0:00:12]} 8. Nf3 {[%emt 0:00:07]} O-O {[%emt 0:00:35]} 9. O-O {[%emt 0:00:07]} Re8 {[%emt 0:02:19]} 10. Re1 {[%emt 0:02:08]} a6 {[%emt 0:01:00]} 11. a4 {[%emt 0:00:32]} Nbd7 {[%emt 0:00:22]} 12. Bf4 {[%emt 0:01:24]} Ng4 {[%emt 0:00:44]} 13. Rb1 {[%emt 0:09:41]} Nde5 {[%emt 0:18:38]} 14. Ne4 {[%emt 0:13:48]} h6 {[%emt 0:08:02]} 15. Nxe5 {[%emt 0:24:43]} Nxe5 {[%emt 0:02:23]} 16. b4 {[%emt 0:00:26]} c4 {[%emt 0:19:11]} 17. Qc1 {[%emt 0:05:15]} f5 {[%emt 0:02:44]} 18. Nc3 {[%emt 0:00:22]} g5 {[%emt 0:13:55]} 19. Bd2 {[%emt 0:00:05]} Qf6 {[%emt 0:01:34]} 20. b5 {[%emt 0:01:51]} axb5 {[%emt 0:05:57]} 21. Rxb5 {[%emt 0:03:44]} Nd7 {[%emt 0:04:06]} 22. Rb4 {[%emt 0:04:45]} Nc5 {[%emt 0:01:21]} 23. Rxc4 {[%emt 0:03:45]} Bd7 {[%emt 0:03:51]} 24. Qc2 {[%emt 0:09:47]} Rec8 {[%emt 0:01:04]} 25. Rc1 {[%emt 0:10:09]} Qe7 {[%emt 0:04:11]} 26. Qb1 {[%emt 0:02:47]} Rf8 {[%emt 0:03:29]} 27. Be3 {[%emt 0:01:32]} b6 {[%emt 0:01:56]} 28. Bd4 {[%emt 0:01:02]} Bxd4 {[%emt 0:00:33]} 29. Rxd4 {[%emt 0:00:03]} Bxa4 {[%emt 0:00:39]} 30. Nxa4 {[%emt 0:01:13]} Nxa4 {[%emt 0:00:33]} 31. e3 {[%emt 0:00:14]} Nc5 {[%emt 0:00:52]} 32. Rb4 {[%emt 0:00:08]} Nd7 {[%emt 0:00:57]} 33. Rc7 {[%emt 0:00:38]} Qd8 {[%emt 0:00:51]} 34. Rc1 {[%emt 0:01:28]} Qf6 {[%emt 0:01:08]} 35. f4 {[%emt 0:02:42]} Rfc8 {[%emt 0:00:32]} 36. Rf1 {[%emt 0:00:20]} g4 {[%emt 0:00:44]} 37. e4 {[%emt 0:00:04]} fxe4 {[%emt 0:00:35]} 38. Rxe4 {[%emt 0:01:15]} Nc5 {[%emt 0:00:23]} 39. Rb4 {[%emt 0:00:16]} Nd7 {[%emt 0:00:36]} 40. Re4 {[%emt 0:01:07]} Nc5 {[%emt 0:00:07]} 41. Rb4 {[%emt 0:05:40]} Re8 {[%emt 0:20:05]} 42. Qd1 {[%emt 0:06:52]} h5 {[%emt 0:01:43]} 43. Qd2 {[%emt 0:00:10]} Nd7 {[%emt 0:02:19]} 44. Rbb1 {[%emt 0:01:01]} Re7 {[%emt 0:00:52]} 45. Rfe1 {[%emt 0:00:36]} Rae8 {[%emt 0:01:57]} 46. Re6 {[%emt 0:00:36]} Rxe6 {[%emt 0:04:02]} 47. dxe6 {[%emt 0:00:04]} Nc5 {[%emt 0:00:53]} 48. Qxd6 {[%emt 0:05:01]} Rxe6 {[%emt 0:00:13]} 49. Qd5 {[%emt 0:05:09]} Kf8 {[%emt 0:02:08]} 50. Qxh5 {[%emt 0:01:51]} Qd4+ {[%emt 0:00:08]} 51. Kh1 {[%emt 0:00:03]} Nd3 {[%emt 0:00:10]} 52. Bd5 {[%emt 0:00:30]} Re2 {[%emt 0:00:49]} 53. Qf7# {[%emt 0:00:05]} 1-0

[Event "FIDE Womens World Cup 2021"]
[Site "Sochi"]
[Date "2021.07.13"]
[Round "1.2"]
[White "Mammadova, Gulnar"]
[Black "Narva, Mai"]
[Result "0-1"]
[ECO "B06"]
[WhiteElo "2385"]
[BlackElo "2276"]
[Annotator "NA"]
[PlyCount "76"]
[EventDate "2021.07.12"]
[EventType "k.o."]
[EventCountry "RUS"]
[SourceTitle "playchess.com"]
[Source "ChessBase"]
[SourceQuality "1"]
[TimeControl "40/5400+30:1800+30"]

1. d4 {[%emt 0:00:06]} g6 {[%emt 0:00:21]} 2. e4 {[%emt 0:01:41]} Bg7 {[%emt 0:00:13]} 3. Nc3 {[%emt 0:00:46]} c6 {[%emt 0:00:25]} 4. Nf3 {[%emt 0:00:35]} d5 {[%emt 0:00:16]} 5. h3 {[%emt 0:00:40]} Nf6 {[%emt 0:00:21]} 6. e5 {[%emt 0:03:39]} Ne4 {[%emt 0:00:16]} 7. Bd3 {[%emt 0:01:34]} Nxc3 {[%emt 0:00:24]} 8. bxc3 {[%emt 0:00:02]} c5 {[%emt 0:00:23]} 9. a4 {[%emt 0:05:20]} c4 {[%emt 0:06:54]} 10. Be2 {[%emt 0:00:05]} Qa5 {[%emt 0:00:54]} 11. O-O {[%emt 0:04:15]} Nd7 {[%emt 0:02:47]} 12. Qd2 {[%emt 0:03:18]} Nb6 {[%emt 0:06:35]} 13. Ba3 {[%emt 0:01:21]} Nxa4 {[%emt 0:10:01]} 14. Bb4 {[%emt 0:05:25]} Qb5 {[%emt 0:00:31]} 15. Qg5 {[%emt 0:04:34]} O-O {[%emt 0:14:07]} 16. Qd2 {[%emt 0:20:00]} Re8 {[%emt 0:03:33]} 17. Nh2 {[%emt 0:00:28]} Qc6 {[%emt 0:12:27]} 18. f4 {[%emt 0:04:03]} a5 {[%emt 0:01:47]} 19. Ba3 {[%emt 0:00:10]} b5 {[%emt 0:02:20]} 20. Bg4 {[%emt 0:04:34]} f5 {[%emt 0:07:37]} 21. exf6 {[%emt 0:01:08]} exf6 {[%emt 0:00:31]} 22. f5 {[%emt 0:04:03]} h5 {[%emt 0:05:59]} 23. fxg6 {[%emt 0:12:53]} hxg4 {[%emt 0:00:57]} 24. hxg4 {[%emt 0:01:35]} Rb8 {[%emt 0:06:34]} 25. Qf4 {[%emt 0:02:58]} Rb7 {[%emt 0:02:39]} 26. Qg3 {[%emt 0:00:50]} b4 {[%emt 0:01:59]} 27. cxb4 {[%emt 0:00:20]} axb4 {[%emt 0:00:13]} 28. Bc1 {[%emt 0:00:13]} b3 {[%emt 0:01:24]} 29. Ba3 {[%emt 0:07:28]} b2 {[%emt 0:02:48]} 30. Rab1 {[%emt 0:00:02]} Qb6 {[%emt 0:03:27]} 31. Nf3 {[%emt 0:02:54]} Bf8 {[%emt 0:02:59]} 32. Bxf8 {[%emt 0:00:47]} Rxf8 {[%emt 0:00:30]} 33. Qh4 {[%emt 0:02:14]} Nc3 {[%emt 0:00:53]} 34. Kf2 {[%emt 0:01:13]} Ne4+ {[%emt 0:00:29]} 35. Ke2 {[%emt 0:01:44]} Qc7 {[%emt 0:00:34]} 36. Ne5 {[%emt 0:02:21]} Qg7 {[%emt 0:00:37]} 37. Nf7 {[%emt 0:00:16]} Qxg6 {[%emt 0:00:39]} 38. Nh8 {[%emt 0:02:53]} Qxg4+ {[%emt 0:00:24]} 0-1